fUSD/lending_fUSD_20250606
["ID","MTS","AMOUNT","RATE_DAILY","PERIOD"]
[364799591,1749245460635,-888.42,0.00028054,5]
[364799592,1749245460645,-1453.42,0.00028054,5]
[364799593,1749245460655,-2483.76,0.00028054,5]
[364799594,1749245460664,-683.26,0.00028054,5]
[364799595,1749245460673,-152.03274,0.00028054,7]
[364799596,1749245460683,-323.429583,0.00028054,5]
[364799597,1749245460692,-480.0,0.00028054,5]
[364799598,1749245460701,-747.35,0.00028054,5]
[364799599,1749245460711,-5842.1,0.00028054,5]
[364799600,1749245460721,-5650.54,0.00028054,5]
[364799601,1749245460730,-2077.01,0.00028054,5]
[364799602,1749245460739,-950.27,0.00028054,5]
[364799603,1749245460748,-734.81,0.00028054,5]
[364799604,1749245460758,-480.0,0.00028054,5]
[364799605,1749245460767,-480.0,0.00028054,5]
[364799606,1749245460776,-638.71,0.00028054,5]
[364799607,1749245460785,-958.16,0.00028054,5]
[364799608,1749245460795,-1117.56,0.00028054,5]
[364799609,1749245460804,-3319.06,0.00028054,5]
[364799610,1749245460814,-10869.49,0.00028054,5]
[364799611,1749245460824,-480.0,0.00028054,5]
[364799612,1749245460833,-992.85,0.00028054,5]
[364799613,1749245460843,-530.29,0.00028054,2]
[364799614,1749245460852,-1496.95,0.00028054,5]
[364799615,1749245460861,-516.46,0.00028054,5]
[364799616,1749245460871,-63805.06,0.00028054,5]
[364799617,1749245460881,-480.0,0.00028054,5]
[364799618,1749245460891,-498.71,0.00028054,5]
[364799619,1749245460900,-2837.7128986,0.00028081,2]
[364799620,1749245460910,-3716.4170991,0.00028081,2]
[364799621,1749245460920,-166.5,0.00028094,2]
[364799622,1749245460930,-500.0,0.00028121,5]
[364799623,1749245460939,-166.16,0.00028121,2]
[364799624,1749245460949,-150.0,0.00028144,2]
[364799625,1749245460958,-769.37504606,0.00028164,30]
[364799626,1749245460968,-2560.3423802,0.00028166,2]
[364799627,1749245460977,-915.40110699,0.0002817,2]
[364799628,1749245460987,-1028.16663308,0.00028176,18]
[364799629,1749245460996,-1215.346773,0.0002818,2]
[364799630,1749245461006,-151.0,0.00028184,3]
[364799631,1749245461019,-151.0,0.00028184,3]
[364799632,1749245461028,-151.0,0.00028184,3]
[364799633,1749245461037,-161.0,0.00028184,3]
[364799634,1749245461046,-253.2642748,0.00028184,3]
[364799635,1749245461057,-151.0,0.00028184,3]
[364799636,1749245461066,-151.0,0.00028184,3]
[364799637,1749245461076,-152.0,0.00028184,3]
[364799638,1749245461087,-151.0,0.00028184,3]
[364799639,1749245461096,-152.0,0.00028184,3]
[364799640,1749245461105,-151.0,0.00028184,3]
[364799641,1749245461115,-152.0,0.00028184,3]
[364799642,1749245461125,-292.95177789,0.00028184,3]
[364799643,1749245461135,-152.0,0.00028184,3]
[364799644,1749245461144,-152.0,0.00028184,3]
[364799645,1749245461154,-152.0,0.00028184,3]
[364799646,1749245461163,-152.0,0.00028184,3]
[364799647,1749245461172,-152.0,0.00028184,3]
[364799648,1749245461182,-150.0,0.00028185,2]
[364799649,1749245461191,-1000.0,0.00028187,2]
[364799650,1749245461201,-500.0,0.00028191,5]
[364799651,1749245461210,-150.0,0.00028191,5]
[364799652,1749245461219,-155.32431393,0.00028191,5]
[364799653,1749245461228,-500.0,0.00028191,5]
[364799654,1749245461238,-150.0,0.00028191,5]
[364799655,1749245461247,-150.0,0.00028191,5]
[364799656,1749245461257,-150.0,0.00028191,5]
[364799657,1749245461266,-500.0,0.00028191,5]
[364799658,1749245461276,-150.0,0.00028191,5]
[364799659,1749245461286,-150.0,0.00028191,5]
[364799660,1749245461296,-150.0,0.00028191,5]
[364799661,1749245461307,-500.0,0.00028191,5]
[364799662,1749245461316,-500.0,0.00028191,5]
[364799663,1749245461326,-500.0,0.00028191,5]
[364799664,1749245461335,-150.0,0.00028191,5]
[364799665,1749245461344,-500.0,0.00028191,5]
[364799666,1749245461354,-500.0,0.00028191,5]
[364799667,1749245461363,-500.0,0.00028191,5]
[364799668,1749245461372,-500.0,0.00028191,5]
[364799669,1749245461382,-150.0,0.00028191,5]
[364799670,1749245461391,-150.0,0.00028191,5]
[364799671,1749245461401,-500.0,0.00028191,5]
[364799672,1749245461410,-500.0,0.00028191,5]
[364799673,1749245461419,-500.0,0.00028191,5]
[364799674,1749245461429,-500.0,0.00028191,5]
[364799675,1749245461438,-150.0,0.00028191,2]
[364799676,1749245461447,-500.0,0.00028191,5]
[364799677,1749245461456,-500.0,0.00028191,5]
[364799678,1749245461466,-1332.0,0.00028191,5]
[364799679,1749245461475,-500.0,0.00028191,5]
[364799680,1749245461484,-150.0,0.00028191,2]
[364799681,1749245461494,-448.0,0.00028191,5]
[364799682,1749245461503,-500.0,0.00028191,2]
[364799683,1749245461512,-500.0,0.00028191,5]
[364799684,1749245461521,-150.0,0.00028191,5]
[364799685,1749245461531,-500.0,0.00028191,2]
[364799686,1749245461540,-1966.0,0.00028191,5]
[364799687,1749245461550,-150.0,0.00028191,5]
[364799688,1749245461559,-500.0,0.00028191,5]
[364799689,1749245461568,-721.3698456,0.000282,2]
[364799690,1749245461578,-120823.0777284,0.000282,2]
[364799691,1749245461588,-151.0,0.00028218,7]
[364799692,1749245461597,-154.14598,0.00028218,7]
[364799693,1749245461606,-151.0,0.00028218,7]
[364799694,1749245461616,-151.0,0.00028218,7]
[364799695,1749245461625,-151.0,0.00028218,7]
[364799696,1749245461634,-151.0,0.00028218,7]
[364799697,1749245461644,-151.0,0.00028218,7]
[364799698,1749245461654,-151.0,0.00028218,7]
[364799699,1749245461664,-151.0,0.00028218,7]
[364799700,1749245461674,-189.000712,0.00028218,7]
[364799701,1749245461684,-189.000712,0.00028218,7]
[364799702,1749245461694,-230.005207,0.00028218,7]
[364799703,1749245461703,-716.411263,0.00028218,7]
[364799704,1749245461713,-230.005207,0.00028218,7]
[364799705,1749245461722,-151.0,0.00028218,7]
[364799706,1749245461732,-716.411263,0.00028218,7]
[364799707,1749245461742,-151.0,0.00028218,7]
[364799708,1749245461752,-151.0,0.00028218,7]
[364799709,1749245461761,-423.327613,0.00028218,7]
[364799710,1749245461771,-423.327613,0.00028218,7]
[364799711,1749245461781,-151.0,0.00028218,7]
[364799712,1749245461790,-151.0,0.00028218,7]
[364799713,1749245461799,-151.0,0.00028218,7]
[364799714,1749245461809,-9119.3221,0.00028218,7]
[364799715,1749245461818,-9119.3221,0.00028218,7]
[364799716,1749245461828,-151.0,0.00028218,7]
[364799717,1749245461837,-153.547648,0.00028218,7]
[364799718,1749245461847,-153.547648,0.00028218,7]
[364799719,1749245461856,-384.12657,0.00028218,7]
[364799720,1749245461866,-151.0,0.00028218,7]
[364799721,1749245461875,-384.12657,0.00028218,7]
[364799722,1749245461885,-151.0,0.00028218,7]
[364799723,1749245461894,-152.03274,0.00028218,7]
[364799724,1749245461903,-152.03274,0.00028218,7]
[364799725,1749245461913,-662.984692,0.00028218,7]
[364799726,1749245461922,-662.984692,0.00028218,7]
[364799727,1749245461931,-500.0,0.00028218,5]
[364799728,1749245461941,-150.0,0.00028218,5]
[364799729,1749245461950,-500.0,0.00028218,5]
[364799730,1749245461959,-150.0,0.00028218,5]
[364799731,1749245461968,-150.0,0.00028218,5]
[364799732,1749245461978,-150.0,0.00028218,5]
[364799733,1749245461987,-500.0,0.00028218,5]
[364799734,1749245461997,-150.0,0.00028218,5]
[364799735,1749245462006,-150.0,0.00028218,5]
[364799736,1749245462020,-150.0,0.00028218,5]
[364799737,1749245462030,-500.0,0.00028218,5]
[364799738,1749245462040,-500.0,0.00028218,5]
[364799739,1749245462049,-500.0,0.00028218,5]
[364799740,1749245462060,-150.0,0.00028218,5]
[364799741,1749245462069,-500.0,0.00028218,5]
[364799742,1749245462079,-553.20959988,0.00028218,5]
[364799743,1749245462089,-500.0,0.00028218,5]
[364799744,1749245462098,-500.0,0.00028218,5]
[364799745,1749245462108,-150.0,0.00028218,5]
[364799746,1749245462119,-150.0,0.00028218,5]
[364799747,1749245462129,-500.0,0.00028218,5]
[364799748,1749245462139,-500.0,0.00028218,5]
[364799749,1749245462148,-500.0,0.00028218,5]
[364799750,1749245462158,-500.0,0.00028218,5]
[364799751,1749245462168,-500.0,0.00028218,5]
[364799752,1749245462177,-500.0,0.00028218,5]
[364799753,1749245462188,-1332.0,0.00028218,5]
[364799754,1749245462197,-500.0,0.00028218,5]
[364799755,1749245462207,-448.0,0.00028218,5]
[364799756,1749245462217,-500.0,0.00028218,2]
[364799757,1749245462226,-500.0,0.00028218,5]
[364799758,1749245462236,-500.0,0.00028218,2]
[364799759,1749245462246,-1966.0,0.00028218,5]
[364799760,1749245462256,-150.0,0.00028218,5]
[364799761,1749245462266,-500.0,0.00028218,5]
[364799762,1749245462275,-480.0,0.00028219,5]
[364799763,1749245462285,-480.0,0.00028219,5]
[364799764,1749245462295,-480.0,0.00028219,5]
[364799765,1749245462305,-651.31,0.00028219,5]
[364799766,1749245462315,-480.0,0.00028219,5]
[364799767,1749245462325,-483.33,0.00028219,5]
[364799768,1749245462337,-538.52,0.00028219,5]
[364799769,1749245462348,-480.0,0.00028219,5]
[364799770,1749245462359,-480.0,0.00028219,2]
[364799771,1749245462368,-480.0,0.00028219,5]
[364799772,1749245462378,-480.0,0.00028219,5]
[364799773,1749245462388,-685.83,0.00028219,5]
[364799774,1749245462397,-480.0,0.00028219,5]
[364799775,1749245462407,-480.0,0.00028219,5]
[364799776,1749245462417,-549.23,0.00028219,5]
[364799777,1749245462426,-500.02,0.00028219,5]
[364799778,1749245462436,-480.0,0.00028219,5]
[364799779,1749245462445,-619.23,0.00028219,5]
[364799780,1749245462455,-480.0,0.00028219,5]
[364799781,1749245462464,-538.98,0.00028219,5]
[364799782,1749245462474,-480.0,0.00028219,5]
[364799783,1749245462484,-516.51,0.00028219,5]
[364799784,1749245462493,-480.0,0.00028219,5]
[364799785,1749245462503,-480.0,0.00028219,5]
[364799786,1749245462513,-480.0,0.00028219,5]
[364799787,1749245462524,-508.36,0.00028219,5]
[364799788,1749245462533,-480.0,0.00028219,5]
[364799789,1749245462544,-594.92,0.00028219,5]
[364799790,1749245462553,-480.0,0.00028219,5]
[364799791,1749245462562,-213.91313477,0.00028219,5]
[364799792,1749245462572,-655.89,0.00028219,5]
[364799793,1749245462582,-480.0,0.00028219,5]
[364799794,1749245462592,-480.0,0.00028219,5]
[364799795,1749245462602,-533.19,0.00028219,5]
[364799796,1749245462611,-480.0,0.00028219,5]
[364799797,1749245462621,-508.07,0.00028219,5]
[364799798,1749245462630,-480.0,0.00028219,5]
[364799799,1749245462639,-504.81,0.00028219,5]
[364799800,1749245462648,-480.0,0.00028219,5]
[364799801,1749245462658,-480.0,0.00028219,5]
[364799802,1749245462667,-480.0,0.00028219,5]
[364799803,1749245462676,-556.66,0.00028219,5]
[364799804,1749245462686,-656.61,0.00028219,5]
[364799805,1749245462696,-480.0,0.00028219,5]
[364799806,1749245462705,-480.0,0.00028219,5]
[364799807,1749245462715,-480.0,0.00028219,5]
[364799808,1749245462724,-880.83,0.00028219,5]
[364799809,1749245462794,-336.21202676,0.00028219,5]
[364799810,1749245462803,-1046.06,0.00028219,5]
[364799811,1749245462813,-571.800087,0.00028219,5]
[364799812,1749245462822,-480.0,0.00028219,5]
[364799813,1749245462832,-480.0,0.00028219,5]
[364799814,1749245462841,-480.0,0.00028219,5]
[364799815,1749245462851,-480.0,0.00028219,5]
[364799816,1749245462859,-480.0,0.00028219,5]
[364799817,1749245462869,-480.0,0.00028219,5]
[364799818,1749245462879,-559.351977,0.00028219,5]
[364799819,1749245462888,-480.0,0.00028219,5]
[364799820,1749245462897,-636.86,0.00028219,5]
[364799821,1749245462907,-492.47,0.00028219,5]
[364799822,1749245462917,-463.91490995,0.00028219,5]
[364799823,1749245462926,-480.0,0.00028219,5]
[364799824,1749245462935,-527.03,0.00028219,5]
[364799825,1749245462945,-527.07,0.00028219,5]
[364799826,1749245462955,-480.0,0.00028219,5]
[364799827,1749245462964,-829.98,0.00028219,5]
[364799828,1749245462973,-480.0,0.00028219,5]
[364799829,1749245462982,-480.0,0.00028219,5]
[364799830,1749245462991,-232.02883511,0.00028219,5]
[364799831,1749245463001,-480.0,0.00028219,5]
[364799832,1749245463012,-492.47,0.00028219,5]
[364799833,1749245463029,-480.0,0.00028219,5]
[364799834,1749245463039,-523.07,0.00028219,5]
[364799835,1749245463049,-480.0,0.00028219,5]
[364799836,1749245463059,-480.0,0.00028219,5]
[364799837,1749245463068,-480.0,0.00028219,5]
[364799838,1749245463078,-429.60572225,0.00028219,5]
[364799839,1749245463088,-480.0,0.00028219,5]
[364799840,1749245463098,-800.29,0.00028219,5]
[364799841,1749245463108,-480.0,0.00028219,5]
[364799842,1749245463120,-480.0,0.00028219,5]
[364799843,1749245463130,-480.0,0.00028219,5]
[364799844,1749245463140,-702.95,0.00028219,5]
[364799845,1749245463151,-480.0,0.00028219,5]
[364799846,1749245463161,-771.000696,0.00028219,5]
[364799847,1749245463171,-480.0,0.00028219,5]
[364799848,1749245463181,-480.0,0.00028219,5]
[364799849,1749245463190,-480.0,0.00028219,5]
[364799850,1749245463200,-5472.06,0.00028219,5]
[364799851,1749245463210,-1065.447344,0.00028219,5]
[364799852,1749245463220,-2440.57,0.00028219,5]
[364799853,1749245463229,-1814.61,0.00028219,5]
[364799854,1749245463238,-480.0,0.00028219,5]
[364799855,1749245463248,-5858.97,0.00028219,5]
[364799856,1749245463258,-2363.07,0.00028219,5]
[364799857,1749245463268,-1000.0,0.00028219,2]
[364799858,1749245463278,-480.0,0.00028219,5]
[364799859,1749245463287,-585.97,0.00028219,5]
[364799860,1749245463297,-480.0,0.00028219,5]
[364799861,1749245463307,-659.35,0.00028219,5]
[364799862,1749245463317,-480.0,0.00028219,5]
[364799863,1749245463326,-1396.08,0.00028219,5]
[364799864,1749245463336,-642.87,0.00028219,5]
[364799865,1749245463346,-941.0,0.00028219,5]
[364799866,1749245463355,-1168.575528,0.00028219,5]
[364799867,1749245463364,-900.91,0.00028219,5]
[364799868,1749245463374,-843.14,0.00028219,5]
[364799869,1749245463384,-506.99,0.00028219,5]
[364799870,1749245463394,-10746.06,0.00028219,5]
[364799871,1749245463404,-1353.33,0.00028219,5]
[364799872,1749245463414,-480.0,0.00028219,5]
[364799873,1749245463424,-480.0,0.00028219,5]
[364799874,1749245463434,-1533.93,0.00028219,5]
[364799875,1749245463443,-1127.16,0.00028219,5]
[364799876,1749245463453,-1096.57,0.00028219,5]
[364799877,1749245463463,-638.2,0.00028219,5]
[364799878,1749245463473,-2733.98,0.00028219,5]
[364799879,1749245463482,-1416.92,0.00028219,5]
[364799880,1749245463492,-1292.067761,0.00028219,5]
[364799881,1749245463502,-1360.31,0.00028219,5]
[364799882,1749245463512,-868.83,0.00028219,5]
[364799883,1749245463522,-2950.26,0.00028219,5]
[364799884,1749245463532,-731.97,0.00028219,5]
[364799885,1749245463542,-1184.81,0.00028219,5]
[364799886,1749245463551,-1342.0,0.00028219,5]
[364799887,1749245463561,-480.0,0.00028219,5]
[364799888,1749245463570,-731.22,0.00028219,5]
[364799889,1749245463579,-1139.52,0.00028219,5]
[364799890,1749245463589,-2337.68,0.00028219,5]
[364799891,1749245463599,-480.0,0.00028219,5]
[364799892,1749245463608,-480.0,0.00028219,5]
[364799893,1749245463618,-1831.6,0.00028219,5]
[364799894,1749245463627,-289.831393,0.00028219,7]
[364799895,1749245463637,-763.29,0.00028219,5]
[364799896,1749245463647,-1132.32,0.00028219,5]
[364799897,1749245463656,-3008.51,0.00028219,5]
[364799898,1749245463666,-2113.05,0.00028219,5]
[364799899,1749245463676,-480.0,0.00028219,5]
[364799900,1749245463685,-234.768306,0.00028219,7]
[364799901,1749245463694,-862.65,0.00028219,5]
[364799902,1749245463704,-480.0,0.00028219,5]
[364799903,1749245463714,-2923.97,0.00028219,5]
[364799904,1749245463724,-1453.13,0.00028219,5]
[364799905,1749245463733,-4156.92,0.00028219,5]
[364799906,1749245463742,-480.0,0.00028219,5]
[364799907,1749245463752,-1274.65,0.00028219,5]
[364799908,1749245463761,-1332.06,0.00028219,5]
[364799909,1749245463771,-677.14666,0.00028219,5]
[364799910,1749245463780,-1082.7,0.00028219,5]
[364799911,1749245463789,-480.0,0.00028219,5]
[364799912,1749245463799,-1025.06,0.00028219,5]
[364799913,1749245463808,-480.0,0.00028219,5]
[364799914,1749245463818,-1551.16,0.00028219,5]
[364799915,1749245463827,-1882.05,0.00028219,5]
[364799916,1749245463836,-951.78,0.00028219,5]
[364799917,1749245463847,-598.87,0.00028219,5]
[364799918,1749245463857,-151.0,0.00028219,7]
[364799919,1749245463866,-480.0,0.00028219,5]
[364799920,1749245463876,-1613.93,0.00028219,5]
[364799921,1749245463885,-480.0,0.00028219,5]
[364799922,1749245463894,-817.65,0.00028219,5]
[364799923,1749245463904,-3420.12,0.00028219,5]
[364799924,1749245463913,-480.0,0.00028219,5]
[364799925,1749245463923,-151.0,0.00028219,7]
[364799926,1749245463932,-603.979676,0.00028219,5]
[364799927,1749245463942,-1779.32,0.00028219,5]
[364799928,1749245463951,-4369.27,0.00028219,5]
[364799929,1749245463961,-1294.16,0.00028219,5]
[364799930,1749245463970,-1215.8,0.00028219,5]
[364799931,1749245463980,-1228.33,0.00028219,5]
[364799932,1749245463989,-632.6,0.00028219,5]
[364799933,1749245463999,-480.0,0.00028219,5]
[364799934,1749245464008,-480.0,0.00028219,5]
[364799935,1749245464021,-1300.84,0.00028219,5]
[364799936,1749245464031,-692.3,0.00028219,5]
[364799937,1749245464040,-12112.58,0.00028219,5]
[364799938,1749245464049,-151.0,0.00028219,7]
[364799939,1749245464060,-151.0,0.00028219,7]
[364799940,1749245464070,-497.69,0.00028219,5]
[364799941,1749245464079,-683.2,0.00028219,5]
[364799942,1749245464088,-1266.65,0.00028219,5]
[364799943,1749245464098,-151.0,0.00028219,7]
[364799944,1749245464109,-480.0,0.00028219,5]
[364799945,1749245464121,-501.63,0.00028219,5]
[364799946,1749245464130,-705.09,0.00028219,5]
[364799947,1749245464140,-4732.68,0.00028219,5]
[364799948,1749245464150,-717.45,0.00028219,5]
[364799949,1749245464160,-974.5,0.00028219,5]
[364799950,1749245464170,-4416.75,0.00028219,5]
[364799951,1749245464180,-1656.72,0.00028219,5]
[364799952,1749245464189,-480.0,0.00028219,5]
[364799953,1749245464199,-480.0,0.00028219,5]
[364799954,1749245464209,-480.0,0.00028219,5]
[364799955,1749245464219,-682.68,0.00028219,5]
[364799956,1749245464229,-480.0,0.00028219,5]
[364799957,1749245464239,-607.26,0.00028219,5]
[364799958,1749245464249,-217.752716,0.00028219,5]
[364799959,1749245464259,-7562.75,0.00028219,5]
[364799960,1749245464269,-597.24,0.00028219,5]
[364799961,1749245464279,-3844.59,0.00028219,5]
[364799962,1749245464289,-621.94,0.00028219,5]
[364799963,1749245464298,-480.0,0.00028219,5]
[364799964,1749245464308,-1661.61,0.00028219,5]
[364799965,1749245464318,-672.61,0.00028219,5]
[364799966,1749245464327,-480.0,0.00028219,5]
[364799967,1749245464337,-480.0,0.00028219,5]
[364799968,1749245464346,-2171.5,0.00028219,5]
[364799969,1749245464355,-536.17318438,0.00028219,5]
[364799970,1749245464365,-904.82,0.00028219,5]
[364799971,1749245464375,-487.01,0.00028219,5]
[364799972,1749245464385,-3523.57,0.00028219,5]
[364799973,1749245464395,-1412.37,0.00028219,5]
[364799974,1749245464404,-16871.99,0.00028219,5]
[364799975,1749245464415,-179.546228,0.00028219,5]
[364799976,1749245464425,-590.09,0.00028219,5]
[364799977,1749245464435,-151.0,0.00028219,7]
[364799978,1749245464445,-3605.79,0.00028219,5]
[364799979,1749245464455,-1584.5,0.00028219,5]
[364799980,1749245464465,-569.63,0.00028219,5]
[364799981,1749245464475,-1945.39,0.00028219,5]
[364799982,1749245464485,-241.696265,0.00028219,7]
[364799983,1749245464495,-151.0,0.00028219,7]
[364799984,1749245464504,-3465.3,0.00028219,5]
[364799985,1749245464514,-241.696265,0.00028219,7]
[364799986,1749245464525,-1081.7,0.00028219,5]
[364799987,1749245464534,-2006.64,0.00028219,5]
[364799988,1749245464543,-531.04,0.00028219,5]
[364799989,1749245464553,-607.53,0.00028219,5]
[364799990,1749245464562,-1607.92,0.00028219,5]
[364799991,1749245464571,-480.0,0.00028219,5]
[364799992,1749245464581,-1750.07,0.00028219,5]
[364799993,1749245464591,-1119.57,0.00028219,5]
[364799994,1749245464600,-911.9,0.00028219,5]
[364799995,1749245464610,-480.0,0.00028219,5]
[364799996,1749245464620,-222.79240423,0.00028219,5]
[364799997,1749245464629,-1710.78,0.00028219,5]
[364799998,1749245464640,-210.49716,0.00028219,7]
[364799999,1749245464649,-689.26,0.00028219,5]
[364800000,1749245464661,-480.0,0.00028219,5]
[364800001,1749245464672,-480.0,0.00028219,5]
[364800002,1749245464682,-210.49716,0.00028219,7]
[364800003,1749245464691,-1070.37,0.00028219,5]
[364800004,1749245464701,-623.94,0.00028219,5]
[364800005,1749245464711,-1791.7,0.00028219,5]
[364800006,1749245464721,-167.154589,0.00028219,7]
[364800007,1749245464730,-1965.72,0.00028219,5]
[364800008,1749245464740,-480.0,0.00028219,5]
[364800009,1749245464750,-240.124881,0.00028219,5]
[364800010,1749245464759,-1996.69,0.00028219,5]
[364800011,1749245464769,-3288.44,0.00028219,5]
[364800012,1749245464778,-1032.5,0.00028219,5]
[364800013,1749245464788,-771.7,0.00028219,5]
[364800014,1749245464797,-480.0,0.00028219,5]
[364800015,1749245464807,-1627.97,0.00028219,5]
[364800016,1749245464816,-321.24603856,0.00028219,5]
[364800017,1749245464826,-670.33,0.00028219,5]
[364800018,1749245464835,-201.294307,0.00028219,7]
[364800019,1749245464844,-575.24,0.00028219,5]
[364800020,1749245464853,-4755.29,0.00028219,5]
[364800021,1749245464863,-151.0,0.00028219,7]
[364800022,1749245464871,-201.294307,0.00028219,7]
[364800023,1749245464881,-2179.19,0.00028219,5]
[364800024,1749245464890,-480.0,0.00028219,5]
[364800025,1749245464900,-1950.69,0.00028219,5]
[364800026,1749245464910,-612.41509581,0.00028219,5]
[364800027,1749245464920,-622.31,0.00028219,5]
[364800028,1749245464930,-888.42,0.00028219,5]
[364800029,1749245464939,-1453.42,0.00028219,5]
[364800030,1749245464948,-2483.76,0.00028219,5]
[364800031,1749245464958,-683.26,0.00028219,5]
[364800032,1749245464968,-172.604956,0.00028219,7]
[364800033,1749245464977,-323.429583,0.00028219,5]
[364800034,1749245464987,-480.0,0.00028219,5]
[364800035,1749245464996,-172.604956,0.00028219,7]
[364800036,1749245465006,-747.35,0.00028219,5]
[364800037,1749245465021,-5842.1,0.00028219,5]
[364800038,1749245465033,-5650.54,0.00028219,5]
[364800039,1749245465042,-2077.01,0.00028219,5]
[364800040,1749245465051,-950.27,0.00028219,5]
[364800041,1749245465062,-734.81,0.00028219,5]
[364800042,1749245465072,-480.0,0.00028219,5]
[364800043,1749245465083,-480.0,0.00028219,5]
[364800044,1749245465093,-638.71,0.00028219,5]
[364800045,1749245465103,-958.16,0.00028219,5]
[364800046,1749245465112,-1117.56,0.00028219,5]
[364800047,1749245465122,-3319.06,0.00028219,5]
[364800048,1749245465133,-10869.49,0.00028219,5]
[364800049,1749245465143,-480.0,0.00028219,5]
[364800050,1749245465155,-992.85,0.00028219,5]
[364800051,1749245465165,-530.29,0.00028219,2]
[364800052,1749245465174,-1496.95,0.00028219,5]
[364800053,1749245465184,-516.46,0.00028219,5]
[364800054,1749245465193,-63805.06,0.00028219,5]
[364800055,1749245465203,-480.0,0.00028219,5]
[364800056,1749245465212,-498.71,0.00028219,5]
[364800057,1749245465221,-150.0,0.00028233,2]
[364800058,1749245465230,-500.0,0.00028246,5]
[364800059,1749245465240,-200.6854111,0.00028246,5]
[364800060,1749245465250,-500.0,0.00028246,5]
[364800061,1749245465259,-150.0,0.00028246,5]
[364800062,1749245465268,-150.0,0.00028246,5]
[364800063,1749245465278,-150.0,0.00028246,5]
[364800064,1749245465288,-500.0,0.00028246,5]
[364800065,1749245465297,-150.0,0.00028246,5]
[364800066,1749245465306,-150.0,0.00028246,5]
[364800067,1749245465316,-500.0,0.00028246,5]
[364800068,1749245465326,-500.0,0.00028246,5]
[364800069,1749245465335,-500.0,0.00028246,5]
[364800070,1749245465345,-254.70642229,0.00028246,5]
[364800071,1749245465354,-500.0,0.00028246,5]
[364800072,1749245465363,-500.0,0.00028246,5]
[364800073,1749245465372,-500.0,0.00028246,5]
[364800074,1749245465381,-150.0,0.00028246,5]
[364800075,1749245465391,-200.82433775,0.00028246,5]
[364800076,1749245465400,-500.0,0.00028246,5]
[364800077,1749245465409,-500.0,0.00028246,5]
[364800078,1749245465419,-500.0,0.00028246,5]
[364800079,1749245465428,-500.0,0.00028246,5]
[364800080,1749245465438,-500.0,0.00028246,5]
[364800081,1749245465447,-305.62743304,0.00028246,5]
[364800082,1749245465456,-1332.0,0.00028246,5]
[364800083,1749245465466,-500.0,0.00028246,5]
[364800084,1749245465475,-448.0,0.00028246,5]
[364800085,1749245465485,-500.0,0.00028246,2]
[364800086,1749245465495,-500.0,0.00028246,5]
[364800087,1749245465504,-500.0,0.00028246,2]
[364800088,1749245465514,-1966.0,0.00028246,5]
[364800089,1749245465523,-150.0,0.00028246,5]
[364800090,1749245465532,-500.0,0.00028246,5]